bitfinex/quotes_SOLUSD_20230101
["timestamp","ask_amount","ask_price","bid_price","bid_amount"]
[1672605236351,137.5871,10.037,10.029,22.9438]
[1672605237087,40.0,10.036,10.029,22.9438]
[1672605237290,137.5871,10.037,10.029,22.9438]
[1672605238672,97.5871,10.037,10.029,22.9438]
[1672605239187,97.5871,10.037,10.029,62.9438]
[1672605240035,97.5871,10.037,10.029,22.9438]
[1672605240343,40.0,10.036,10.029,22.9438]
[1672605241168,97.5871,10.037,10.029,22.9438]
[1672605242661,40.0,10.036,10.029,22.9438]
[1672605243604,74.82,10.035,10.029,22.9438]
[1672605250958,74.82,10.035,10.026,160.21250859]
[1672605251155,85.59952972,10.034,10.023,44.75]
[1672605251480,40.0,10.032,10.021,44.76]
[1672605251691,74.85,10.031,10.021,44.76]
[1672605251904,40.0,10.03,10.021,44.76]
[1672605252513,63.6454,10.03,10.021,44.76]
[1672605254964,63.6454,10.03,10.021,60.56730786]
[1672605255187,138.5054,10.03,10.021,60.56730786]
[1672605257904,98.5054,10.03,10.021,60.56730786]
[1672605258113,23.6454,10.03,10.021,60.56730786]
[1672605258754,23.6454,10.03,10.022,40.0]
[1672605258952,23.6454,10.03,10.023,45.04]
[1672605259163,23.6454,10.03,10.023,60.84730786]
[1672605259372,23.6454,10.03,10.024,15.80730786]
[1672605260650,23.6454,10.03,10.022,44.91]
[1672605260837,23.6454,10.03,10.023,15.80730786]
[1672605261050,23.6454,10.03,10.024,44.9]
[1672605261258,23.6454,10.03,10.023,15.80730786]
[1672605261482,23.6454,10.03,10.024,44.9]
[1672605261699,23.6454,10.03,10.022,44.91]
[1672605266451,24.32917916,10.029,10.022,44.91]
[1672605270740,24.32917916,10.029,10.022,60.71730786]
[1672605273678,24.32917916,10.029,10.023,40.0]
[1672605274000,24.32917916,10.029,10.024,44.91]
[1672605274221,24.32917916,10.029,10.025,359.6]
[1672605274529,24.32917916,10.029,10.026,60.70730786]
[1672605274741,24.32917916,10.029,10.027,20.0]
[1672605274937,24.32917916,10.029,10.028,44.63]
[1672605275146,24.32917916,10.029,10.028,20.0]
[1672605275356,40.0,10.035,10.028,20.0]
[1672605278446,22.36752957,10.034,10.028,20.0]
[1672605282316,114.8,10.037,10.028,20.0]
[1672605282543,114.8,10.037,10.028,42.6939]
[1672605283383,22.38920682,10.036,10.028,42.6939]
[1672605285066,74.82,10.035,10.028,42.6939]
[1672605286325,22.36752957,10.034,10.028,42.6939]
[1672605292844,20.0,10.033,10.025,44.75]
[1672605293051,94.83,10.033,10.022,44.76]
[1672605293366,40.0,10.031,10.022,44.76]
[1672605293772,64.1668,10.031,10.023,15.80730786]
[1672605294733,64.1668,10.031,10.022,44.76]
[1672605295259,64.1668,10.031,10.021,44.77]
[1672605295471,24.1668,10.03,10.021,44.77]
[1672605295887,24.1668,10.03,10.022,15.80730786]
[1672605296100,24.1668,10.03,10.023,44.94]
[1672605296291,22.31329861,10.029,10.023,44.94]
[1672605296836,22.31329861,10.029,10.021,44.95]
[1672605297019,45.92719861,10.029,10.021,44.95]
[1672605300820,45.92719861,10.029,10.021,60.75730786]
[1672605301149,45.92719861,10.029,10.022,40.0]
[1672605301371,45.92719861,10.029,10.023,44.98]
[1672605302614,45.92719861,10.029,10.022,44.94]
[1672605309233,45.92719861,10.029,10.023,40.0]
[1672605309556,45.92719861,10.029,10.025,40.0]
[1672605309765,22.31329861,10.029,10.025,40.0]
[1672605312283,22.31329861,10.029,10.024,46.11]
[1672605320491,22.31329861,10.029,10.023,15.80730786]
[1672605320708,22.31329861,10.029,10.022,64.5]
[1672605324162,22.31329861,10.029,10.023,40.0]
[1672605324695,22.31329861,10.029,10.023,103.98745509]
[1672605325753,22.31329861,10.029,10.023,63.98745509]
[1672605327327,22.31329861,10.029,10.024,40.0]
[1672605327527,22.31329861,10.029,10.024,105.57]
[1672605327738,22.31329861,10.029,10.024,169.55745509]
[1672605336784,22.31329861,10.029,10.024,129.55745509]
[1672605348651,22.31329861,10.029,10.025,40.0]
[1672605350653,22.31329861,10.029,10.024,169.55745509]
[1672605352792,74.82,10.035,10.026,40.0]
[1672605352998,74.81,10.036,10.027,93.06]
[1672605353303,74.81,10.036,10.028,40.0]
[1672605353520,20.50808802,10.034,10.029,20.0]
[1672605354569,74.81,10.036,10.029,20.0]
[1672605355007,99.3832,10.037,10.029,20.0]
[1672605355403,20.51892772,10.035,10.029,20.0]
[1672605362563,99.3832,10.037,10.029,20.0]
[1672605363511,20.52976527,10.036,10.029,20.0]
[1672605364980,60.52976527,10.036,10.029,20.0]
[1672605366865,74.82,10.035,10.029,20.0]
[1672605367290,40.0,10.034,10.029,20.0]
[1672605369799,95.33892772,10.035,10.029,20.0]
[1672605370009,20.51892772,10.035,10.029,20.0]
[1672605372747,74.83,10.034,10.029,20.0]
[1672605373077,95.33892772,10.035,10.029,20.0]
[1672605373492,20.49724615,10.033,10.029,20.0]
[1672605374534,40.0,10.034,10.029,20.0]
[1672605375375,20.49724615,10.033,10.029,20.0]
[1672605376327,40.0,10.034,10.029,20.0]
[1672605378642,74.82,10.035,10.029,20.0]
[1672605378834,74.81,10.036,10.029,20.0]
[1672605379044,74.81,10.036,10.029,43.4011]
[1672605379482,20.50808802,10.034,10.029,43.4011]
[1672605382108,20.50808802,10.034,10.029,59.20840786]
[1672605382542,64.5832,10.037,10.029,59.20840786]
[1672605382733,74.81,10.036,10.029,59.20840786]
[1672605383353,40.0,10.035,10.029,59.20840786]
[1672605383770,74.81,10.036,10.029,59.20840786]
[1672605385149,74.81,10.036,10.029,43.4011]
[1672605388005,74.81,10.036,10.03,15.80730786]
[1672605388216,40.0,10.036,10.03,15.80730786]
[1672605389579,20.51892772,10.035,10.029,43.4011]
[1672605389799,20.51892772,10.035,10.029,59.20840786]
[1672605391672,20.51892772,10.035,10.03,40.0]
[1672605392406,99.3832,10.037,10.03,40.0]
[1672605393555,20.52976527,10.036,10.03,40.0]
[1672605393788,20.52976527,10.036,10.029,99.20840786]
[1672605395155,20.52976527,10.036,10.029,59.20840786]
[1672605398629,20.52976527,10.036,10.029,81.51840786]
[1672605403887,20.52976527,10.036,10.029,150.77536962]
[1672605407249,20.52976527,10.036,10.03,40.0]
[1672605407451,20.52976527,10.036,10.031,22.23]
[1672605407664,20.52976527,10.036,10.032,40.0]
[1672605410617,20.52976527,10.036,10.032,55.80730786]
[1672605413643,20.52976527,10.036,10.032,40.0]
[1672605414922,20.52976527,10.036,10.031,204.7722619]
[1672605415762,20.52976527,10.036,10.032,40.0]
[1672605416710,20.52976527,10.036,10.031,220.57956976]
[1672605417430,20.52976527,10.036,10.032,40.0]
[1672605417635,20.52976527,10.036,10.031,220.57956976]
[1672605417856,20.52976527,10.036,10.032,40.0]
[1672605422510,20.52976527,10.036,10.031,220.57956976]
[1672605429534,20.52976527,10.036,10.031,91.48696176]
[1672605429745,40.0,10.035,10.029,113.10347761]
[1672605429957,40.0,10.035,10.029,90.98347761]
[1672605430279,40.0,10.035,10.029,113.10347761]
[1672605430489,20.50808802,10.034,10.029,113.10347761]
[1672605434478,40.0,10.036,10.029,113.10347761]
[1672605435439,20.51892772,10.035,10.029,113.10347761]
[1672605437328,20.51892772,10.035,10.029,128.91078547]
[1672605440999,20.51892772,10.035,10.03,40.0]
[1672605441190,20.51892772,10.035,10.029,128.91078547]
[1672605441401,24.5832,10.037,10.031,15.80730786]
[1672605441610,24.5832,10.037,10.032,22.24]
[1672605441842,24.5832,10.037,10.031,38.04730786]
[1672605442160,24.5832,10.037,10.032,15.80730786]
[1672605442590,20.52976527,10.036,10.032,15.80730786]
[1672605444260,20.52976527,10.036,10.031,22.24]
[1672605444454,20.52976527,10.036,10.031,38.04730786]
[1672605455484,60.52976527,10.036,10.031,15.80730786]
[1672605458114,20.52976527,10.036,10.031,15.80730786]
[1672605460233,20.52976527,10.036,10.029,142.06148932]
[1672605460431,20.52976527,10.036,10.029,157.86879718]
[1672605460644,20.52976527,10.036,10.029,97.78840786]
[1672605461274,20.52976527,10.036,10.029,43.4011]
[1672605462851,20.52976527,10.036,10.029,59.20840786]
[1672605463480,20.52976527,10.036,10.029,92.85840786]
[1672605464027,20.52976527,10.036,10.029,77.0511]
[1672605464219,20.52976527,10.036,10.029,43.4011]
[1672605466652,20.52976527,10.036,10.03,22.31]
[1672605466842,20.52976527,10.036,10.029,65.6811]
[1672605467260,60.52976527,10.036,10.029,65.6811]
[1672605467699,60.52976527,10.036,10.029,81.48840786]
[1672605468223,60.52976527,10.036,10.029,65.6811]
[1672605469276,20.52976527,10.036,10.029,81.48840786]
[1672605472535,20.52976527,10.036,10.03,40.0]
[1672605475585,20.52976527,10.036,10.029,121.48840786]
[1672605477139,20.52976527,10.036,10.03,40.0]
[1672605479142,20.52976527,10.036,10.03,55.80730786]
[1672605479358,20.52976527,10.036,10.031,22.22]
[1672605479680,20.52976527,10.036,10.032,15.80730786]
[1672605482185,20.52976527,10.036,10.031,22.22]
[1672605482610,20.52976527,10.036,10.031,38.02730786]
[1672605488619,20.52976527,10.036,10.031,15.80730786]
[1672605489553,20.52976527,10.036,10.03,25.84]
[1672605492267,95.33976527,10.036,10.029,43.4011]
[1672605492477,40.0,10.035,10.029,43.4011]
[1672605493529,20.50279617,10.034,10.029,43.4011]
[1672605503002,20.50279617,10.034,10.029,59.20840786]
[1672605503418,114.81,10.036,10.029,81.56840786]
[1672605503627,99.3832,10.037,10.03,40.0]
[1672605503842,24.5832,10.037,10.03,40.0]
[1672605504165,24.5832,10.037,10.03,62.36]
[1672605504358,24.5832,10.037,10.03,78.16730786]
[1672605504569,20.52447342,10.036,10.03,78.16730786]
[1672605512470,20.52447342,10.036,10.03,38.16730786]
[1672605512669,20.52447342,10.036,10.03,15.80730786]
[1672605514170,20.52447342,10.036,10.03,55.80730786]
[1672605515419,20.52447342,10.036,10.029,83.4011]
[1672605515623,20.52447342,10.036,10.03,22.28]
[1672605515836,20.52447342,10.036,10.029,105.6811]
[1672605516034,20.52447342,10.036,10.029,65.6811]
[1672605516572,20.52447342,10.036,10.029,43.4011]
[1672605516786,95.33447342,10.036,10.029,43.4011]
[1672605518264,95.33447342,10.036,10.029,65.7211]
[1672605519727,20.52447342,10.036,10.029,43.4011]
[1672605519939,20.52447342,10.036,10.029,59.20840786]
[1672605520572,20.52447342,10.036,10.03,40.0]
[1672605520792,20.52447342,10.036,10.03,22.23]
[1672605522048,20.52447342,10.036,10.03,62.23]
[1672605523410,20.52447342,10.036,10.03,22.23]
[1672605523600,20.52447342,10.036,10.029,81.43840786]
[1672605528355,20.52447342,10.036,10.03,40.0]
[1672605529310,20.52447342,10.036,10.029,121.43840786]
[1672605530448,20.52447342,10.036,10.03,40.0]
[1672605533199,20.52447342,10.036,10.029,238.73660122]
[1672605533407,20.52447342,10.036,10.029,198.73660122]
[1672605536970,40.0,10.035,10.029,43.4011]
[1672605537189,114.82,10.035,10.029,43.4011]
[1672605537595,60.51363587,10.035,10.029,43.4011]
[1672605537815,74.83,10.034,10.029,23.4011]
[1672605538351,74.83,10.034,10.027,74.72823759]
[1672605538542,40.0,10.032,10.027,74.72823759]
[1672605538752,114.84,10.032,10.027,74.72823759]
[1672605542642,20.47026408,10.031,10.021,22.53]
[1672605542854,40.0,10.03,10.021,22.53]
[1672605543058,62.5946,10.03,10.021,22.53]
[1672605543479,62.5946,10.03,10.021,62.53]
[1672605545068,62.5946,10.03,10.021,85.8368]
[1672605545697,62.5946,10.03,10.021,45.8368]
[1672605546655,20.44856521,10.029,10.021,45.8368]
[1672605546872,20.44856521,10.029,10.022,15.80730786]
[1672605547077,20.44856521,10.029,10.023,22.6]
[1672605547498,20.44856521,10.029,10.024,55.80730786]
[1672605547815,20.44856521,10.029,10.025,38.39730786]
[1672605550233,20.44856521,10.029,10.025,22.59]
[1672605551688,20.44856521,10.029,10.025,38.39730786]
[1672605553892,20.44856521,10.029,10.025,22.59]
[1672605556765,20.44856521,10.029,10.024,62.54]
[1672605560533,20.44856521,10.029,10.024,22.54]
[1672605560754,20.44856521,10.029,10.023,22.62]
[1672605561066,20.44856521,10.029,10.023,62.62]
[1672605565887,20.44856521,10.029,10.023,22.62]
[1672605566651,20.44856521,10.029,10.023,62.62]
[1672605567805,20.44856521,10.029,10.023,40.0]
[1672605569260,20.44856521,10.029,10.024,22.77]
[1672605570622,20.44856521,10.029,10.023,24.44]
[1672605575039,40.0,10.028,10.021,53.9968]
[1672605575473,60.43771253,10.028,10.021,53.9968]
[1672605576301,60.43771253,10.028,10.021,23.3068]
[1672605576934,135.30771253,10.028,10.021,23.3068]
[1672605584086,95.30771253,10.028,10.021,63.3068]
[1672605584294,20.43771253,10.028,10.021,63.3068]
[1672605584726,20.43771253,10.028,10.021,23.3068]
[1672605590921,74.88,10.027,10.021,23.3068]
[1672605591469,95.30685769,10.027,10.021,23.3068]
[1672605591783,20.42685769,10.027,10.021,23.3068]
[1672605593153,20.42685769,10.027,10.021,63.3068]
[1672605595365,20.42685769,10.027,10.021,23.3068]
[1672605596408,20.42685769,10.027,10.021,63.3068]
[1672605596812,20.42685769,10.027,10.021,23.3068]
[1672605602837,20.42685769,10.027,10.021,63.3068]
[1672605603152,20.42685769,10.027,10.021,23.3068]
[1672605604519,98.0388,10.029,10.021,23.3068]
[1672605605148,23.1788,10.029,10.022,40.0]
[1672605605550,20.43771253,10.028,10.022,55.80730786]
[1672605609023,20.43771253,10.028,10.023,22.71]
[1672605609440,20.43771253,10.028,10.023,38.51730786]
[1672605609658,20.43771253,10.028,10.024,40.0]
[1672605610597,20.43771253,10.028,10.025,22.7]
[1672605611011,20.43771253,10.028,10.026,15.80730786]
[1672605611222,20.43771253,10.028,10.027,22.7]
[1672605611549,20.43771253,10.028,10.027,179.81028122]
[1672605611766,40.0,10.036,10.027,227.47559632]
[1672605612171,114.8,10.037,10.028,40.0]
[1672605612381,114.8,10.037,10.029,20.0]
[1672605612594,20.51363587,10.035,10.029,20.0]
[1672605613655,114.8,10.037,10.029,20.0]
[1672605613855,114.8,10.037,10.029,42.7682]
[1672605614499,20.52447342,10.036,10.029,42.7682]
[1672605617433,20.52447342,10.036,10.029,65.0882]
[1672605627639,60.52447342,10.036,10.029,65.0882]
[1672605628466,20.52447342,10.036,10.029,65.0882]
[1672605632055,60.52447342,10.036,10.029,65.0882]
[1672605632676,20.52447342,10.036,10.029,65.0882]
[1672605633324,60.52447342,10.036,10.029,42.7682]
[1672605634580,20.52447342,10.036,10.029,42.7682]
[1672605637615,60.52447342,10.036,10.029,42.7682]
[1672605639611,20.52447342,10.036,10.029,42.7682]
[1672605646770,60.52447342,10.036,10.029,42.7682]
[1672605663402,20.52447342,10.036,10.029,42.7682]
[1672605669192,60.52447342,10.036,10.029,42.7682]
[1672605671077,20.52447342,10.036,10.029,42.7682]
[1672605672666,135.91598189,10.038,10.029,42.7682]
[1672605682631,95.91598189,10.038,10.03,15.80730786]
[1672605683592,95.91598189,10.038,10.029,42.7682]
[1672605686110,40.0,10.037,10.029,42.7682]
[1672605686639,61.12675834,10.037,10.029,42.7682]
[1672605686847,74.81,10.036,10.029,42.7682]
[1672605687671,40.0,10.035,10.029,42.7682]
[1672605688002,74.81,10.036,10.029,42.7682]
[1672605690417,40.0,10.035,10.029,42.7682]
[1672605690633,61.10520329,10.035,10.029,42.7682]
[1672605695353,21.10520329,10.035,10.029,42.7682]
[1672605698733,21.10520329,10.035,10.029,65.1382]
[1672605699041,21.10520329,10.035,10.029,42.7682]
[1672605699573,114.8,10.037,10.029,42.7682]
[1672605700623,21.11598189,10.036,10.029,42.7682]
[1672605702301,21.11598189,10.036,10.029,105.48695142]
[1672605703672,114.8,10.038,10.029,105.48695142]
[1672605704721,21.12675834,10.037,10.029,105.48695142]
[1672605705128,21.12675834,10.037,10.029,121.29425928]
[1672605706402,21.12675834,10.037,10.03,40.0]
[1672605706811,21.12675834,10.037,10.03,124.93875142]
[1672605707025,21.12675834,10.037,10.03,84.93875142]
[1672605707559,98.4343,10.039,10.031,15.80730786]
[1672605707771,23.6443,10.039,10.032,40.0]
[1672605708086,23.6443,10.039,10.031,40.68360786]
[1672605708487,21.13753265,10.038,10.031,40.68360786]
[1672605710699,21.13753265,10.038,10.032,40.0]
[1672605711641,21.13753265,10.038,10.031,80.68360786]
[1672605711961,21.13753265,10.038,10.031,24.8763]
[1672605712290,21.13753265,10.038,10.032,22.15]
[1672605712501,21.13753265,10.038,10.031,47.0263]
[1672605715345,21.13753265,10.038,10.031,109.74505142]
[1672605716269,21.13753265,10.038,10.031,87.59505142]
[1672605717229,95.93753265,10.038,10.031,87.59505142]
[1672605717443,21.13753265,10.038,10.031,87.59505142]
[1672605718371,21.13753265,10.038,10.031,103.40235928]
[1672605721227,21.13753265,10.038,10.032,22.1]
[1672605721636,21.13753265,10.038,10.032,77.90730786]
[1672605722487,21.13753265,10.038,10.032,62.1]
[1672605724174,21.13753265,10.038,10.032,132.61875142]
[1672605724369,21.13753265,10.038,10.032,199.70962213]
[1672605724582,21.13753265,10.038,10.033,40.0]
[1672605725006,21.13753265,10.038,10.034,70.51875142]
[1672605726358,23.1925,10.049,10.035,93.81864843]
[1672605726575,9.31925834,10.049,10.037,40.0]
[1672605726795,63.8904,10.05,10.038,157.1306]
[1672605727110,74.71,10.049,10.04,40.0]
[1672605727311,74.7,10.051,10.041,115.1606]
[1672605727521,17.72686377,10.049,10.042,40.0]
[1672605727744,74.72,10.048,10.042,40.0]
[1672605728347,74.72,10.048,10.041,161.6621]
[1672605728575,17.70536017,10.047,10.041,161.6621]
[1672605729405,17.70536017,10.047,10.042,40.0]
[1672605729614,74.71,10.049,10.042,40.0]
[1672605729847,74.7,10.051,10.042,40.0]
[1672605730054,74.7,10.051,10.042,64.9057]
[1672605730456,74.7,10.051,10.042,135.42445142]
[1672605730677,74.7,10.051,10.042,157.02445142]
[1672605731292,74.7,10.051,10.042,117.02445142]
[1672605732262,97.3457,10.051,10.042,117.02445142]
[1672605732575,17.73761236,10.05,10.042,117.02445142]
[1672605733302,17.73761236,10.05,10.043,40.0]
[1672605734033,17.23761236,10.05,10.043,40.0]
[1672605734564,17.23761236,10.05,10.042,157.02445142]
[1672605736262,17.23761236,10.05,10.042,117.02445142]
[1672605737844,74.71,10.049,10.042,24.9057]
[1672605738156,40.0,10.048,10.042,24.9057]
[1672605738568,74.73,10.047,10.042,24.9057]
[1672605741083,57.67444638,10.048,10.042,24.9057]
[1672605742258,17.67444638,10.048,10.042,24.9057]
[1672605743204,17.67444638,10.048,10.042,64.9057]
[1672605744570,137.9089,10.05,10.042,64.9057]
[1672605744882,137.9089,10.05,10.042,24.9057]
[1672605745090,97.9089,10.05,10.042,24.9057]
[1672605745622,17.68519711,10.049,10.042,24.9057]
[1672605746250,57.68519711,10.049,10.042,24.9057]
[1672605747111,74.72,10.048,10.042,24.9057]
[1672605747739,132.39519711,10.049,10.042,24.9057]
[1672605758127,92.39519711,10.049,10.042,24.9057]
[1672605763395,92.39519711,10.049,10.042,64.9057]
[1672605763798,92.39519711,10.049,10.042,24.9057]
[1672605774449,17.68519711,10.049,10.042,24.9057]
[1672605775804,74.72,10.048,10.042,24.9057]
[1672605776015,92.39519711,10.049,10.042,24.9057]
[1672605776757,17.66369351,10.047,10.042,24.9057]
[1672605777588,74.71,10.049,10.042,24.9057]
[1672605778635,17.67444638,10.048,10.042,24.9057]
[1672605781156,57.67444638,10.048,10.042,24.9057]
[1672605781906,17.67444638,10.048,10.042,24.9057]
[1672605782956,17.67444638,10.048,10.042,64.9057]
[1672605783479,17.67444638,10.048,10.042,24.9057]
[1672605784108,17.67444638,10.048,10.042,64.9057]
[1672605784431,17.67444638,10.048,10.042,24.9057]
[1672605784619,97.9089,10.05,10.042,46.5157]
[1672605785376,97.9089,10.05,10.042,24.9057]
[1672605785569,17.68519711,10.049,10.042,24.9057]
[1672605787372,57.68519711,10.049,10.042,24.9057]
[1672605788509,17.68519711,10.049,10.042,24.9057]
[1672605789248,57.68519711,10.049,10.042,24.9057]
[1672605790736,17.68519711,10.049,10.042,24.9057]
[1672605791686,17.68519711,10.049,10.042,64.9057]
[1672605792617,17.68519711,10.049,10.042,24.9057]
[1672605792831,17.68519711,10.049,10.042,64.9057]
[1672605793143,17.68519711,10.049,10.042,24.9057]
[1672605794082,17.68519711,10.049,10.042,64.9057]
[1672605794295,17.68519711,10.049,10.042,213.23943956]
[1672605795873,17.68519711,10.049,10.042,234.78943956]
[1672605796729,17.68519711,10.049,10.042,194.78943956]
[1672605799126,57.68519711,10.049,10.042,194.78943956]
[1672605800074,17.68519711,10.049,10.042,194.78943956]
[1672605801238,17.68519711,10.049,10.042,173.23943956]
[1672605805450,57.68519711,10.049,10.042,173.23943956]
[1672605811133,17.68519711,10.049,10.042,173.23943956]
[1672605811438,57.68519711,10.049,10.042,173.23943956]
[1672605812892,17.68519711,10.049,10.042,173.23943956]
[1672605813960,57.68519711,10.049,10.042,173.23943956]
[1672605815015,17.68519711,10.049,10.042,173.23943956]
[1672605819421,57.68519711,10.049,10.042,173.23943956]
[1672605821529,17.68519711,10.049,10.042,173.23943956]
[1672605827096,57.68519711,10.049,10.042,24.9057]
[1672605827285,17.68519711,10.049,10.042,24.9057]
[1672605827713,17.68519711,10.049,10.042,103.21326492]
[1672605828034,17.68519711,10.049,10.043,40.0]
[1672605828655,17.68519711,10.049,10.042,213.325847]
[1672605830234,17.68519711,10.049,10.042,173.325847]
[1672605832458,57.68519711,10.049,10.042,173.325847]
[1672605835299,17.68519711,10.049,10.042,173.325847]
[1672605838154,57.68519711,10.049,10.042,173.325847]
[1672605838871,17.68519711,10.049,10.042,173.325847]
[1672605852646,17.68519711,10.049,10.042,95.01828208]
[1672605852977,74.72,10.048,10.042,24.9057]
[1672605853802,17.66369351,10.047,10.042,24.9057]
[1672605854014,57.66369351,10.047,10.042,24.9057]
[1672605854540,57.66369351,10.047,10.029,21.59]
[1672605854541,42.51483646,10.046,10.029,21.59]
[1672605854755,74.74,10.045,10.031,193.93136795]
[1672605854976,40.0,10.043,10.032,23.8803]
[1672605855196,98.5965,10.042,10.032,23.8803]
[1672605855499,40.0,10.041,10.032,23.8803]
[1672605855709,40.0,10.039,10.032,23.8803]
[1672605857499,40.0,10.037,10.032,23.8803]
[1672605858127,74.81,10.036,10.032,23.8803]
[1672605858448,20.0,10.035,10.025,22.09]
[1672605858757,74.83,10.034,10.021,168.7555]
[1672605859074,40.0,10.033,10.022,165.8813]
[1672605859391,74.84,10.032,10.022,165.8813]
[1672605859620,74.84,10.032,10.022,181.68860786]
[1672605859923,40.0,10.031,10.022,181.68860786]
[1672605861267,74.84,10.032,10.022,181.68860786]
[1672605861490,40.0,10.031,10.022,181.68860786]
[1672605861702,17.48056666,10.03,10.022,181.68860786]
[1672605861912,17.48056666,10.03,10.023,40.0]
[1672605862441,17.48056666,10.03,10.024,38.31730786]
[1672605862627,45.3783,10.032,10.024,38.31730786]
[1672605862843,45.3783,10.032,10.025,15.80730786]
[1672605863493,110.4696,10.033,10.025,15.80730786]
[1672605864211,40.0,10.033,10.025,15.80730786]
[1672605865587,17.50214321,10.032,10.025,15.80730786]
[1672605866118,92.34214321,10.032,10.024,22.51]
[1672605866656,17.50214321,10.032,10.024,22.51]
[1672605866830,17.50214321,10.032,10.023,38.26730786]
[1672605869070,17.50214321,10.032,10.023,22.46]
[1672605869371,17.50214321,10.032,10.022,166.3013]
[1672605870648,114.85,10.031,10.022,166.3013]
[1672605871595,17.48056666,10.03,10.022,166.3013]
[1672605878315,17.48056666,10.03,10.022,143.7813]
[1672605880300,74.86,10.029,10.022,143.7813]
[1672605880528,40.0,10.028,10.022,143.7813]
[1672605882826,40.0,10.026,10.022,143.7813]
[1672605883032,40.0,10.026,10.022,119.9811]
[1672605883247,20.0,10.025,10.022,119.9811]
[1672605883457,94.89,10.025,10.015,22.7]
[1672605883671,40.0,10.024,10.015,22.7]
[1672605886399,74.91,10.023,10.014,1265.70791821]
[1672605886721,74.91,10.023,10.014,1281.51522607]
[1672605886933,74.91,10.023,10.014,1258.54522607]
[1672605887355,40.0,10.022,10.014,1258.54522607]
[1672605887557,40.0,10.022,10.014,1242.73791821]
[1672605887762,57.39417435,10.022,10.014,1242.73791821]
[1672605890295,17.39417435,10.022,10.014,1258.54522607]
[1672605891131,40.0,10.021,10.014,1242.73791821]
[1672605891551,57.39417435,10.022,10.014,1242.73791821]
[1672605891873,17.38336562,10.021,10.014,1242.73791821]
[1672605898705,17.38336562,10.021,10.014,1317.4661558]
[1672605899328,17.38336562,10.021,10.015,23.02]
[1672605899649,17.38336562,10.021,10.016,55.80730786]
[1672605899859,17.38336562,10.021,10.017,23.02]
[1672605900175,629.07881999,10.049,10.021,4.83915306]
[1672605900383,160.6684,10.032,10.021,4.83915306]
[1672605900802,74.85,10.031,10.021,79.56739065]
[1672605901014,74.85,10.031,10.022,23.4114]
[1672605901457,74.85,10.031,10.022,63.4114]
[1672605901648,74.85,10.031,10.022,23.4114]
[1672605901858,114.85,10.031,10.022,23.4114]
[1672605902275,40.0,10.03,10.022,23.4114]
[1672605902500,74.86,10.029,10.022,98.13963759]
[1672605903770,16.01036771,10.028,10.022,98.13963759]
[1672605903960,56.01036771,10.028,10.022,23.4114]
[1672605907234,74.88,10.027,10.022,23.4114]
[1672605907755,90.8795719,10.027,10.022,23.4114]
[1672605907958,40.0,10.026,10.022,23.4114]
[1672605908380,40.0,10.026,10.021,139.60715306]
[1672605909116,90.8795719,10.027,10.021,139.60715306]
[1672605918244,40.0,10.026,10.021,139.60715306]
[1672605918678,55.98877394,10.026,10.021,139.60715306]
[1672605924254,74.89,10.025,10.021,139.60715306]
[1672605924566,15.97797383,10.025,10.021,139.60715306]
[1672605924985,15.97797383,10.025,10.021,28.79405306]
[1672605925307,20.0,10.024,10.021,4.83915306]
[1672605925511,40.0,10.023,10.021,4.83915306]
[1672605927614,15.94556055,10.022,10.021,4.83915306]
[1672605932326,15.94556055,10.022,10.015,40.0]
[1672605932542,15.94556055,10.022,10.014,1242.73791821]
[1672605938440,15.94556055,10.022,10.014,1267.24501821]
[1672605943582,74.92,10.021,10.014,1267.24501821]
[1672605943783,90.86556055,10.022,10.014,1267.24501821]
[1672605947067,40.0,10.021,10.014,1267.24501821]
[1672605947907,15.92394092,10.02,10.014,1267.24501821]
[1672605948743,40.0,10.019,10.014,1267.24501821]